bitfinex/quotes_SOLUSD_20251212
["timestamp","ask_amount","ask_price","bid_price","bid_amount"]
[1765542353119,0.69,138.55,138.52,7.21905474]
[1765542354408,0.69,138.55,138.52,10.02185699]
[1765542355094,7.90731952,138.56,138.53,2.80280225]
[1765542355502,0.69,138.55,138.53,10.02141746]
[1765542359221,0.69,138.55,138.53,7.21861521]
[1765542372261,0.69,138.58,138.54,2.80280225]
[1765542372561,0.69,138.58,138.56,2.80280225]
[1765542372929,0.69,138.58,138.56,10.0198105]
[1765542373323,0.69,138.58,138.56,7.21700825]
[1765542374748,7.90612062,138.58,138.55,7.21738426]
[1765542374950,0.69,138.58,138.55,7.21738426]
[1765542375142,0.69,138.57,138.55,7.21738426]
[1765542376229,0.69,138.57,138.54,18.04477722]
[1765542376451,0.69,138.57,138.54,20.84757947]
[1765542378371,0.69,138.57,138.55,2.80074357]
[1765542380390,0.69,138.57,138.54,28.06365273]
[1765542380668,0.69,138.57,138.54,7.21813194]
[1765542384562,0.69,138.57,138.54,2.80074357]
[1765542387479,0.69,138.57,138.55,7.21761097]
[1765542395609,0.69,138.57,138.53,28.06602905]
[1765542395815,0.69,138.57,138.52,7.21898377]
[1765542395816,10.70735911,138.57,138.52,7.21898377]
[1765542396107,2.80074357,138.56,138.52,7.21898377]
[1765542396311,3.50074357,138.56,138.52,7.21898377]
[1765542396482,0.7,138.55,138.52,7.21898377]
[1765542398515,7.91762633,138.55,138.51,11.59816535]
[1765542399115,0.7,138.54,138.51,11.59816535]
[1765542399399,0.7,138.54,138.5,20.26708878]
[1765542399606,0.7,138.54,138.5,7.21999758]
[1765542399918,5.07847003,138.54,138.5,7.21999758]
[1765542400228,0.7,138.54,138.5,7.21999758]
[1765542400404,0.7,138.53,138.5,7.21999758]
[1765542404613,0.7,138.53,138.5,11.59846761]
[1765542406252,0.7,138.53,138.5,7.21999758]
[1765542406428,0.7,138.53,138.5,11.59846761]
[1765542407633,0.7,138.53,138.5,7.21999758]
[1765542409514,15.1173509,138.56,138.52,4.37847003]
[1765542409733,103.0,138.57,138.52,4.37847003]
[1765542409918,0.7,138.56,138.52,4.37847003]
[1765542410120,0.7,138.56,138.53,4.37847003]
[1765542410944,103.0,138.57,138.53,11.59681461]
[1765542411111,103.7,138.57,138.54,4.37847003]
[1765542411941,103.7,138.57,138.54,4.37617839]
[1765542413025,103.7,138.57,138.55,4.37617839]
[1765542413253,0.7,138.57,138.55,4.37617839]
[1765542415850,0.7,138.57,138.55,11.59353687]
[1765542417741,0.7,138.57,138.55,4.37617839]
[1765542418042,0.7,138.57,138.54,7.21813194]
[1765542418258,0.7,138.57,138.55,4.37617839]
[1765542418974,0.7,138.59,138.56,4.37617839]
[1765542420146,0.7,138.59,138.56,11.59314216]
[1765542423558,0.7,138.59,138.56,7.21696377]
[1765542423759,0.7,138.59,138.56,11.59314216]
[1765542424956,0.7,138.59,138.56,7.21696377]
[1765542425285,0.7,138.59,138.56,11.59314216]
[1765542426686,7.91557735,138.59,138.55,7.21761097]
[1765542427191,0.7,138.58,138.55,7.21761097]
[1765542430288,0.7,138.58,138.55,11.59378936]
[1765542431468,7.21523538,138.6,138.56,4.37617839]
[1765542431677,0.7,138.59,138.56,4.37617839]
[1765542432382,0.7,138.59,138.56,11.59294396]
[1765542436187,7.91579958,138.59,138.55,11.59354798]
[1765542436372,0.7,138.58,138.55,11.59354798]
[1765542439895,12.29232083,138.58,138.54,20.26495904]
[1765542440190,12.29232083,138.58,138.54,7.21786784]
[1765542440379,0.68,138.57,138.54,7.21786784]
[1765542441884,7.89668856,138.57,138.54,7.21786784]
[1765542442281,0.68,138.56,138.54,7.21786784]
[1765542443003,0.68,138.56,138.53,7.21865299]
[1765542443799,0.68,138.56,138.54,4.37617839]
[1765542446003,0.68,138.56,138.54,11.59429109]
[1765542446294,0.68,138.56,138.54,7.2181127]
[1765542446468,0.68,138.56,138.54,11.59492469]
[1765542447488,0.68,138.56,138.55,4.37681199]
[1765542447989,0.68,138.57,138.55,4.37681199]
[1765542449695,7.9,138.58,138.56,11.59390205]
[1765542449910,8.58,138.58,138.57,4.37681199]
[1765542450200,18.03714147,138.61,138.57,4.37681199]
[1765542450201,15.79460988,138.61,138.57,4.37681199]
[1765542450376,0.68,138.6,138.56,7.21709006]
[1765542450583,0.68,138.6,138.58,4.37681199]
[1765542452004,0.68,138.6,138.57,11.59308748]
[1765542453593,0.68,138.6,138.56,25.25981523]
[1765542453799,0.68,138.6,138.58,4.37681199]
[1765542454006,0.68,138.6,138.57,4.37681199]
[1765542455207,7.9,138.61,138.59,4.37681199]
[1765542455397,4.66113513,138.64,138.6,4.37681199]
[1765542455398,0.68,138.64,138.6,4.37681199]
[1765542455705,0.68,138.63,138.62,4.37681199]
[1765542456804,0.68,138.63,138.61,4.37681199]
[1765542457498,7.89353264,138.63,138.59,11.59210044]
[1765542457980,0.68,138.62,138.59,10.01412811]
[1765542458182,0.68,138.62,138.6,2.79883966]
[1765542459894,2.79883966,138.61,138.55,8.80994492]
[1765542460092,2.79883966,138.61,138.55,2.79883966]
[1765542460306,0.68,138.6,138.57,2.79883966]
[1765542462113,7.89506566,138.6,138.56,2.79883966]
[1765542462607,0.68,138.59,138.57,2.79883966]
[1765542463510,0.68,138.59,138.56,10.01583216]
[1765542467218,0.68,138.59,138.56,7.2169925]
[1765542467415,7.89556505,138.59,138.56,10.01583216]
[1765542467800,0.66,138.58,138.56,10.01583216]
[1765542468005,0.66,138.58,138.56,2.79883966]
[1765542469914,0.66,138.58,138.56,10.0158322]
[1765542474716,0.66,138.59,138.57,2.79883966]
[1765542475402,0.66,138.59,138.55,7.21761097]
[1765542475605,0.66,138.59,138.55,2.79883966]
[1765542476924,7.87599346,138.59,138.55,10.01640311]
[1765542477306,0.66,138.58,138.55,10.01640311]
[1765542478140,7.87614019,138.58,138.55,10.01640311]
[1765542478302,7.87614019,138.58,138.54,2.79883966]
[1765542478619,0.66,138.57,138.54,2.79883966]
[1765542479005,0.66,138.57,138.54,10.01689665]
[1765542479626,0.66,138.57,138.54,10.01909765]
[1765542482720,7.87659203,138.57,138.54,10.01909765]
[1765542482925,7.87659203,138.57,138.52,13.0470912]
[1765542483107,7.87659203,138.57,138.53,10.01961154]
[1765542483108,0.66,138.56,138.53,10.01961154]
[1765542485302,0.66,138.56,138.54,2.80104066]
[1765542488030,0.66,138.56,138.53,7.21857088]
[1765542488341,0.66,138.56,138.54,2.80104066]
[1765542488920,25.94071493,138.58,138.54,2.80104066]
[1765542488921,7.87634357,138.58,138.55,2.80104066]
[1765542489231,7.87634357,138.58,138.56,2.80104066]
[1765542489232,7.21634357,138.58,138.56,2.80104066]
[1765542489451,0.66,138.57,138.56,2.80104066]
[1765542490737,0.66,138.57,138.53,7.21865299]
[1765542491029,0.66,138.57,138.56,2.80104066]
[1765542491729,0.66,138.57,138.53,7.21865299]
[1765542491913,0.66,138.57,138.55,2.80104066]
[1765542495434,0.66,138.57,138.54,7.21775792]
[1765542495634,0.66,138.57,138.55,2.80104066]
[1765542500244,0.72,138.58,138.56,2.80104066]
[1765542501442,8.62,138.6,138.57,2.80104066]
[1765542501923,0.72,138.59,138.57,2.80104066]
[1765542502247,8.62,138.6,138.58,2.80104066]
[1765542502743,7.93414479,138.62,138.59,2.80104066]
[1765542502945,0.72,138.61,138.59,2.80104066]
[1765542503827,0.72,138.63,138.6,2.80104066]
[1765542504146,7.93334628,138.64,138.61,2.80104066]
[1765542504351,0.72,138.63,138.61,2.80104066]
[1765542504649,0.72,138.63,138.6,2.80104066]
[1765542505152,0.72,138.63,138.6,10.01596631]
[1765542507548,0.72,138.63,138.6,7.21492565]
[1765542507739,0.72,138.63,138.6,10.01596631]
[1765542508047,111.03253416,138.65,138.61,2.80104066]
[1765542508228,0.82,138.65,138.63,2.80104066]
[1765542509355,0.82,138.65,138.64,2.80104066]
[1765542509649,0.1,138.65,138.64,2.80104066]
[1765542510040,0.1,138.65,138.63,7.21320339]
[1765542510240,0.1,138.65,138.64,2.80104066]
[1765542510552,0.72,138.64,138.61,8.62]
[1765542510848,8.62,138.64,138.59,10.0162679]
[1765542511246,0.72,138.63,138.6,2.80104066]
[1765542511430,7.93368745,138.63,138.6,2.80104066]
[1765542511635,7.93368745,138.63,138.59,10.0162679]
[1765542511855,0.72,138.62,138.59,10.0162679]
[1765542513745,0.72,138.62,138.59,10.01417515]
[1765542516865,0.72,138.62,138.59,7.21522724]
[1765542517064,0.72,138.62,138.59,10.01417515]
[1765542518671,0.72,138.62,138.6,2.79894791]
[1765542519471,0.72,138.62,138.6,7.21498465]
[1765542520660,0.72,138.62,138.59,7.21552781]
[1765542520869,0.72,138.62,138.59,11.58859877]
[1765542523768,12.30715835,138.62,138.56,4.37307096]
[1765542524060,12.30715835,138.62,138.56,17.42016216]
[1765542524265,0.72,138.61,138.56,17.42016216]
[1765542524768,0.72,138.61,138.57,4.37307096]
[1765542525168,7.93450162,138.61,138.57,7.21628523]
[1765542525347,7.93450162,138.61,138.57,11.58935619]
[1765542525548,0.72,138.6,138.57,7.21628523]
[1765542527368,7.93524613,138.6,138.57,7.21628523]
[1765542527879,0.72,138.59,138.57,7.21628523]
[1765542528667,0.72,138.59,138.56,7.21709006]
[1765542530157,0.72,138.59,138.56,11.59016102]
[1765542531656,0.72,138.6,138.57,4.37307096]
[1765542531860,0.72,138.6,138.58,4.37307096]
[1765542532172,0.72,138.61,138.58,4.37307096]
[1765542533071,7.93372965,138.63,138.6,4.37307096]
[1765542533452,0.72,138.62,138.6,4.37307096]
[1765542534185,0.72,138.62,138.59,11.58819184]
[1765542535488,0.72,138.62,138.6,4.37307096]
[1765542537386,0.72,138.62,138.59,11.58819184]
[1765542542381,0.72,138.62,138.6,7.21492842]
[1765542543686,0.72,138.62,138.59,7.21552781]
[1765542551797,0.72,138.62,138.59,11.58893968]
[1765542555605,0.72,138.62,138.59,7.21552781]
[1765542556804,0.72,138.62,138.59,11.58893968]
[1765542562208,0.72,138.62,138.59,7.21552781]
[1765542567210,0.72,138.62,138.59,11.58893968]
[1765542567414,18.03317189,138.64,138.59,11.58893968]
[1765542567415,7.88318642,138.64,138.6,4.37341187]
[1765542567602,0.1,138.65,138.63,4.37341187]
[1765542567923,0.1,138.65,138.64,4.37341187]
[1765542569012,0.1,138.65,138.64,11.58633743]
[1765542571519,0.1,138.65,138.63,7.21344586]
[1765542571730,0.1,138.65,138.64,4.37341187]
[1765542572718,0.1,138.65,138.64,11.58633743]
[1765542573214,0.77,138.65,138.62,28.15878663]
[1765542573512,0.77,138.65,138.63,11.58650284]
[1765542573714,0.77,138.65,138.63,7.21309097]
[1765542574016,0.77,138.65,138.63,11.58650284]
[1765542575123,0.77,138.65,138.63,7.21309097]
[1765542575440,0.77,138.65,138.63,11.58650284]
[1765542578016,0.1,138.65,138.64,4.37341187]
[1765542579523,0.77,138.65,138.64,4.37341187]
[1765542580020,0.77,138.65,138.64,2.79703672]
[1765542580230,0.1,138.65,138.63,7.21309097]
[1765542580398,0.1,138.65,138.64,2.79703672]
[1765542583022,0.77,138.65,138.64,10.00996228]
[1765542583314,0.1,138.65,138.64,10.00996228]
[1765542585519,0.1,138.65,138.64,10.00967411]
[1765542586208,0.1,138.65,138.63,25.24706051]
[1765542586413,0.1,138.65,138.64,2.79674855]
[1765542587311,0.1,138.65,138.64,10.69674855]
[1765542588419,0.1,138.65,138.64,17.90967411]
[1765542591517,0.1,138.65,138.64,25.22054981]
[1765542600408,0.77,138.65,138.64,17.32054981]
[1765542600732,0.1,138.65,138.64,17.32054981]
[1765542605640,0.1,138.65,138.64,34.03049473]
[1765542606535,0.1,138.65,138.64,47.07758593]
[1765542606843,0.1,138.65,138.64,47.36190907]
[1765542621542,0.1,138.68,138.67,13.0470912]
[1765542621738,0.1,138.68,138.67,26.5405883]
[1765542622138,0.1,138.68,138.67,29.42648707]
[1765542622543,0.1,138.68,138.67,36.63785218]
[1765542622845,0.1,138.68,138.67,33.84110363]
[1765542623857,0.1,138.68,138.67,42.64882554]
[1765542624151,0.1,138.7,138.69,0.28432314]
[1765542624447,0.1,138.7,138.69,19.7887936]
[1765542624653,0.1,138.7,138.69,26.99911878]
[1765542624953,0.1,138.7,138.69,29.88397688]
[1765542625653,0.1,138.71,138.69,29.88397688]
[1765542626027,0.1,138.71,138.7,3.07884868]
[1765542626257,0.1,138.71,138.7,5.96370678]
[1765542626850,0.1,138.71,138.7,13.17351211]
[1765542627635,0.1,138.72,138.71,3.07884868]
[1765542627851,0.1,138.72,138.71,10.97884868]
[1765542628357,1e-08,138.72,138.71,19.7887936]
[1765542628837,1e-08,138.72,138.71,26.99807915]
[1765542630258,1e-08,138.73,138.72,9.09426806]
[1765542630760,1e-08,138.73,138.72,11.8887936]
[1765542631057,1e-08,138.73,138.72,14.77302765]
[1765542631255,1e-08,138.74,138.73,0.28432314]
[1765542631432,1e-08,138.75,138.74,22.14135926]
[1765542631628,1e-08,138.75,138.74,27.73041034]
[1765542632045,1e-08,138.75,138.74,30.61422851]
[1765542632254,1e-08,138.75,138.74,37.82195519]
[1765542634746,1e-08,138.75,138.74,35.02742965]
[1765542635147,1e-08,138.75,138.74,42.92742965]
[1765542641872,0.67000001,138.75,138.74,39.84858097]
[1765542642185,0.67000001,138.75,138.74,44.21121711]
[1765542644676,0.67000001,138.75,138.74,31.03863605]
[1765542644873,0.67000001,138.75,138.74,35.40127219]
[1765542646959,0.67000001,138.75,138.74,31.03863605]
[1765542648373,0.67000001,138.75,138.74,35.40127219]
[1765542652753,1e-08,138.75,138.74,44.21121711]
[1765542652959,1e-08,138.75,138.74,44.49554025]
[1765542661180,1e-08,138.75,138.74,48.85817639]
[1765542662078,0.1,138.77,138.76,16.30095586]
[1765542662273,0.1,138.77,138.76,28.56080109]
[1765542662671,0.1,138.77,138.76,35.76339962]
[1765542663276,0.1,138.85,138.79,13.0470912]
[1765542663277,0.72,138.81,138.79,13.0470912]
[1765542663475,0.72,138.81,138.8,7.9]
[1765542663866,0.72,138.81,138.8,15.10167725]
[1765542664073,0.72,138.81,138.8,22.3062882]
[1765542664475,0.72,138.81,138.8,7.20167725]
[1765542664719,0.72,138.81,138.79,20.9470912]
[1765542664863,0.72,138.81,138.79,28.15214856]
[1765542666284,0.72,138.81,138.79,13.0470912]
[1765542666490,0.72,138.81,138.79,7.20511016]
[1765542667789,0.72,138.81,138.78,7.20564922]
[1765542669889,12.28397992,138.81,138.77,35.35688358]
[1765542670086,0.72,138.81,138.77,46.1684407]
[1765542670279,0.72,138.8,138.77,68.53649793]
[1765542670477,0.72,138.8,138.77,69.19649793]
[1765542671387,0.72,138.8,138.77,68.53649793]
[1765542671690,0.1,138.85,138.81,13.0470912]
[1765542672009,0.72,138.83,138.82,7.20357297]
[1765542673372,0.72,138.83,138.82,11.5634182]
[1765542675571,0.1,138.85,138.83,8.80994492]
[1765542675889,0.1,138.85,138.84,12.25984523]
[1765542676090,0.82,138.85,138.84,12.25984523]
[1765542676304,0.82,138.85,138.84,10.78236353]
[1765542676594,0.82,138.85,138.84,7.9]
[1765542676909,0.1,138.89,138.88,22.14135926]
[1765542677210,0.1,138.89,138.88,34.40120449]
[1765542677511,0.1,138.89,138.88,35.06120449]
[1765542677688,0.1,138.89,138.88,45.14278318]
[1765542677996,0.32,138.92,138.88,63.14393525]
[1765542678299,0.1,138.95,138.91,26.21688135]
[1765542678486,0.1,138.95,138.92,12.25984523]
[1765542678986,0.1,138.95,138.93,4.35984523]
[1765542679183,0.1,138.95,138.94,25.30693643]
[1765542679384,10.18364481,139.03,138.98,13.0470912]
[1765542679589,32.5252206,139.03,138.98,13.0470912]
[1765542679880,4.35984523,139.01,138.96,28.12332276]
[1765542680205,0.28432314,139.01,138.94,14.49406171]
[1765542680494,0.66,139.0,138.94,14.49406171]
[1765542680696,0.66,139.0,138.94,7.29684204]
[1765542681699,4.35984523,138.98,138.94,7.29684204]
[1765542681877,11.55540341,138.98,138.94,7.29684204]
[1765542682078,0.66,138.97,138.94,14.49408632]
[1765542683496,8.71969046,138.95,138.94,6.08684204]
[1765542683806,8.71969046,138.95,138.86,7.20132419]
[1765542683807,29.64678166,138.95,138.86,7.20132419]
[1765542683978,7.19942404,138.9,138.86,18.00256727]
[1765542684179,4.35984523,138.89,138.84,7.20237558]
[1765542684383,4.91984523,138.89,138.84,7.20237558]
[1765542684585,0.56,138.88,138.84,38.24622461]
[1765542685090,0.56,138.88,138.84,25.19913341]
[1765542685510,0.56,138.88,138.84,38.24622461]
[1765542685708,4.35984523,138.87,138.84,17.99675783]
[1765542686010,0.56,138.88,138.84,25.20860845]
[1765542686188,0.56,138.9,138.86,4.35984523]
[1765542686386,4.35984523,138.91,138.85,4.35984523]
[1765542686590,0.56,138.89,138.84,38.3783986]
[1765542687792,0.56,138.89,138.84,39.0683986]
[1765542688203,0.56,138.89,138.86,11.56127931]
[1765542689510,7.19898346,138.91,138.87,4.35984523]
[1765542689716,7.19898346,138.91,138.89,4.35984523]
[1765542689717,0.56,138.91,138.89,4.35984523]
[1765542690015,0.56,138.91,138.88,4.35984523]
[1765542691393,0.56,138.91,138.87,4.35984523]
[1765542691713,0.56,138.91,138.87,11.56051279]
[1765542692297,0.56,138.91,138.87,7.20066756]
[1765542692503,0.56,138.91,138.87,11.56051279]
[1765542693311,0.56,138.91,138.87,12.25051279]
[1765542694096,0.56,138.91,138.87,24.49035802]
[1765542694411,0.56,138.91,138.88,11.560195]
[1765542695497,0.56,138.91,138.88,7.20034977]
[1765542695697,0.56,138.91,138.88,11.560195]
[1765542696402,0.56,138.91,138.88,7.20034977]
[1765542698400,0.56,138.94,138.9,4.35984523]
[1765542698913,0.56,138.94,138.91,4.35984523]
[1765542699821,7.75771095,138.94,138.9,11.55888769]
[1765542700021,7.75771095,138.94,138.9,7.19904246]
[1765542700324,0.56,138.93,138.88,46.21689418]
[1765542700509,7.88,138.92,138.88,24.60695361]
[1765542700707,7.88,138.92,138.88,20.24710838]
[1765542700905,0.56,138.91,138.88,24.60695361]
[1765542701424,0.56,138.91,138.88,24.60194844]
[1765542701800,7.75912761,138.91,138.87,24.60278292]
[1765542702102,7.75912761,138.91,138.87,23.03523182]
[1765542702306,0.56,138.9,138.87,23.03523182]
[1765542705224,0.56,138.9,138.87,20.24794286]
[1765542706710,10.54675749,138.9,138.85,13.0470912]
[1765542706912,25.75802864,138.9,138.83,10.66728896]
[1765542707115,0.56,138.89,138.84,13.0470912]
[1765542707321,7.88,138.88,138.84,20.24939158]
[1765542707525,10.66728896,138.88,138.83,20.24994483]
[1765542707723,0.56,138.87,138.83,7.20285363]
[1765542708229,0.56,138.87,138.84,7.20244357]
[1765542708817,0.56,138.87,138.82,38.16522265]
[1765542708818,0.56,138.87,138.83,7.20305409]
[1765542709019,7.76117867,138.87,138.83,7.20305409]
[1765542709326,0.56,138.86,138.83,7.20305409]
[1765542713931,7.76167634,138.86,138.82,20.2506338]
[1765542714532,10.54973498,138.85,138.8,7.20461095]
[1765542714707,7.88,138.84,138.8,7.20461095]
[1765542714906,8.44,138.84,138.8,7.20461095]
[1765542715107,0.56,138.83,138.8,7.20461095]
[1765542717911,7.76311985,138.83,138.8,7.20461095]
[1765542721435,0.56,138.83,138.8,7.91461095]
[1765542723416,2.78728896,138.82,138.77,7.20594262]
[1765542723625,10.66728896,138.81,138.77,7.20594262]
[1765542724014,0.56,138.8,138.77,7.20594262]
[1765542724633,0.56,138.8,138.77,7.91594262]
[1765542726526,7.76472105,138.8,138.77,7.20594262]
[1765542727032,0.56,138.79,138.77,7.20594262]
[1765542727241,0.56,138.79,138.76,20.25357775]
[1765542727457,0.56,138.79,138.76,7.20648655]
[1765542727740,10.5525519,138.79,138.75,7.20712433]
[1765542728129,0.56,138.78,138.75,7.20712433]
[1765542728835,10.66728896,138.77,138.74,0.2]
[1765542729037,2.78728896,138.76,138.74,0.2]
[1765542729217,3.34728896,138.76,138.74,0.2]
[1765542729418,0.56,138.75,138.74,0.2]
[1765542729830,7.88,138.77,138.74,0.2]
[1765542729831,0.56,138.76,138.74,0.2]
[1765542730343,28.0072796,138.78,138.74,0.2]
[1765542730645,0.56,138.78,138.75,3.49728896]
[1765542730825,7.76583451,138.78,138.75,0.71]
[1765542731348,7.76583451,138.78,138.75,7.91719909]
[1765542733138,8.46,138.77,138.74,0.2]
[1765542733530,0.56,138.76,138.74,0.2]
[1765542738647,106.34728896,138.79,138.75,0.69]
[1765542738846,7.9,138.78,138.75,0.69]
[1765542739060,103.0,138.79,138.75,10.68954755]
[1765542739233,37.0110212,138.85,138.75,10.68954755]
[1765542739234,103.0,138.84,138.78,15.83951304]
[1765542739433,7.9,138.84,138.81,2.79242184]
[1765542739648,8.46,138.84,138.8,0.69]
[1765542740226,8.46,138.84,138.8,3.48242184]
[1765542740532,8.46,138.84,138.81,7.20409192]
[1765542740933,8.46,138.84,138.78,13.0470912]
[1765542740934,0.56,138.83,138.78,13.0470912]
[1765542741134,15.10258649,138.84,138.79,3.48242184]
[1765542741341,0.56,138.84,138.8,10.68679634]
[1765542741534,7.9,138.83,138.8,10.68679634]
[1765542742654,20.79642491,138.86,138.8,9.99679634]
[1765542742655,7.20218963,138.85,138.8,9.99679634]
[1765542742864,7.9,138.84,138.82,2.79242184]
[1765542743030,7.20154861,138.86,138.83,3.48242184]
[1765542743229,7.9,138.85,138.83,0.69]
[1765542743932,15.10154861,138.86,138.83,7.89299477]
[1765542744336,15.66154861,138.86,138.83,7.89299477]
[1765542744954,15.66154861,138.86,138.84,2.79242184]
[1765542745157,15.66154861,138.86,138.82,2.79242184]
[1765542745356,15.66154861,138.86,138.82,3.50242184]
[1765542746446,3.35242184,138.85,138.79,2.79242184]
[1765542746643,3.35242184,138.85,138.78,10.70777628]
[1765542746644,2.79242184,138.84,138.78,10.70777628]
[1765542746826,7.9,138.83,138.78,23.75486748]
[1765542747032,8.46,138.83,138.78,23.75486748]
[1765542747287,0.56,138.82,138.79,0.71]
[1765542748155,15.10357016,138.83,138.79,0.71]
[1765542748351,15.66357016,138.83,138.79,0.71]
[1765542748551,15.66357016,138.83,138.79,3.50242184]
[1765542748946,15.66357016,138.83,138.79,10.70742117]
[1765542749163,15.66357016,138.83,138.8,3.50242184]
[1765542749164,15.10357016,138.83,138.8,3.50242184]
[1765542749845,15.66357016,138.83,138.8,3.50242184]
[1765542750154,15.66357016,138.83,138.8,10.70701669]
[1765542752651,15.66357016,138.83,138.8,7.91459485]
[1765542754948,15.10357016,138.83,138.81,0.71]
[1765542755147,15.10357016,138.83,138.8,3.50242184]
[1765542755357,15.66357016,138.83,138.8,0.71]
[1765542756356,15.10357016,138.83,138.8,0.71]
[1765542757550,15.66357016,138.83,138.8,0.71]
[1765542762579,15.10357016,138.83,138.8,0.71]
[1765542763359,15.66357016,138.83,138.8,0.71]
[1765542763559,7.2027909,138.84,138.8,12.27511479]
[1765542763774,7.9,138.82,138.8,12.27511479]
[1765542763988,7.9,138.82,138.81,0.71]
[1765542764155,7.9,138.82,138.8,11.56511479]
[1765542764359,7.9,138.82,138.8,12.27511479]
[1765542764781,8.46,138.82,138.79,7.20488957]
[1765542764972,7.9,138.82,138.79,7.91488957]
[1765542765787,7.9,138.82,138.8,0.71]
[1765542766281,15.10359985,138.82,138.8,0.71]
[1765542766676,7.9,138.82,138.8,0.71]
[1765542767181,15.10358161,138.82,138.8,0.71]
[1765542767576,7.9,138.82,138.8,12.27510763]
[1765542767763,7.9,138.82,138.81,0.72]
[1765542768477,110.20221873,138.85,138.81,5.08055126]
[1765542768666,35.40951607,138.88,138.81,5.08055126]
[1765542768667,121.00187361,138.88,138.83,11.56360535]
[1765542768988,121.00187361,138.88,138.84,4.36055126]
[1765542768989,15.10115118,138.87,138.84,4.36055126]
[1765542769193,15.10115118,138.87,138.84,5.08055126]
[1765542769366,7.20115118,138.87,138.84,5.08055126]
[1765542769854,7.9,138.86,138.84,5.08055126]
[1765542770177,7.20115118,138.87,138.84,5.08055126]
[1765542770481,7.9,138.86,138.84,5.08055126]
[1765542770785,7.9,138.86,138.84,0.72]
[1765542772181,7.20115118,138.87,138.84,0.72]
[1765542772379,7.9,138.86,138.84,0.72]
[1765542772792,7.20115118,138.87,138.84,0.72]
[1765542772968,7.9,138.86,138.84,0.72]
[1765542774490,7.20115118,138.87,138.84,0.72]
[1765542774686,7.88,138.86,138.84,0.72]
[1765542775183,7.20115118,138.87,138.84,0.72]
[1765542775391,7.88,138.86,138.84,0.72]
[1765542776198,7.20115118,138.87,138.84,0.72]
[1765542776385,7.20115118,138.87,138.83,11.56059459]
[1765542776386,8.44,138.86,138.83,11.56059459]
[1765542776560,15.08156236,138.86,138.83,11.56059459]
[1765542776766,15.08156236,138.86,138.84,0.72]
[1765542776986,0.56,138.85,138.82,0.72]
[1765542777194,15.08156236,138.86,138.82,12.28113648]
[1765542777364,15.08156236,138.86,138.83,0.72]
[1765542777565,15.64156236,138.86,138.83,0.72]
[1765542778366,7.2011366,138.87,138.84,4.35759898]
[1765542778692,7.2011366,138.87,138.84,5.07759898]
[1765542778693,7.88,138.86,138.84,5.07759898]
[1765542778890,7.2011366,138.87,138.84,5.07759898]
[1765542779079,7.88,138.86,138.84,4.35759898]
[1765542779399,7.88,138.88,138.85,5.07759898]
[1765542779576,7.88,138.88,138.86,4.35759898]
[1765542779766,7.88,138.88,138.86,5.07759898]
[1765542779968,7.88,138.88,138.86,0.72]
[1765542780466,7.88,138.88,138.86,7.92143609]
[1765542780694,7.88,138.88,138.85,4.35759898]
[1765542780875,15.08054112,138.88,138.85,0.72]
[1765542781070,7.88,138.88,138.86,0.68]
[1765542781373,7.75683339,138.95,138.87,17.40469018]
[1765542781571,7.88,138.94,138.9,4.35759898]
[1765542781890,8.44,138.94,138.9,4.35759898]
[1765542782067,0.56,138.93,138.89,0.68]
[1765542782271,0.56,138.93,138.88,4.35759898]
[1765542782504,7.19838756,138.92,138.88,11.55802704]
[1765542782795,7.19838756,138.92,138.87,13.0470912]
[1765542782967,8.44,138.91,138.87,13.7270912]
[1765542783575,8.44,138.91,138.87,20.92803079]
[1765542784491,7.75989278,138.9,138.86,7.88133234]
[1765542784874,0.56,138.89,138.86,7.88133234]
[1765542785063,7.75989278,138.9,138.86,7.88133234]
[1765542788598,15.07908437,138.91,138.87,5.03759898]